bitfinex/quotes_SOLUSD_20241122
["timestamp","ask_amount","ask_price","bid_price","bid_amount"]
[1732286877557,134.8,254.6,254.43,6.6272]
[1732286877558,31.26608931,254.54,254.45,31.26608931]
[1732286878547,3.9278,254.59,254.41,31.26608931]
[1732286878548,31.26608931,254.5,254.41,31.26608931]
[1732286878731,31.26608931,254.48,254.39,31.26608931]
[1732286879657,31.26608931,254.52,254.42,31.26608931]
[1732286879859,3.9291,254.51,254.42,31.26608931]
[1732286880234,31.26608931,254.5,254.42,31.26608931]
[1732286880435,31.26608931,254.5,254.41,23.776884]
[1732286880739,35.19538931,254.5,254.41,23.776884]
[1732286881362,31.26608931,254.42,254.31,31.26608931]
[1732286881538,31.26608931,254.43,254.34,31.26608931]
[1732286881740,31.26608931,254.41,254.32,31.26608931]
[1732286882353,31.26608931,254.43,254.34,31.26608931]
[1732286882563,31.26608931,254.41,254.34,31.26608931]
[1732286882763,31.26608931,254.41,254.32,31.26608931]
[1732286883065,31.26608931,254.43,254.34,20.68644134]
[1732286883241,3.9299,254.46,254.4,31.26608931]
[1732286883560,35.19558931,254.49,254.4,31.26608931]
[1732286884262,134.8,254.5,254.44,31.26608931]
[1732286884555,134.8,254.5,254.36,31.26608931]
[1732286884556,31.26608931,254.45,254.36,31.26608931]
[1732286884755,31.26608931,254.43,254.35,23.776884]
[1732286885056,31.26608931,254.43,254.34,31.26608931]
[1732286885256,31.26608931,254.41,254.32,31.26608931]
[1732286885835,31.26608931,254.43,254.34,31.26608931]
[1732286886035,31.26608931,254.41,254.32,31.26608931]
[1732286886253,31.26608931,254.39,254.33,23.776884]
[1732286886669,31.26608931,254.37,254.28,31.26608931]
[1732286887264,31.26608931,254.33,254.24,31.26608931]
[1732286888059,3.932,254.32,254.24,31.26608931]
[1732286888232,134.8,254.36,254.28,31.26608931]
[1732286888233,31.26608931,254.35,254.28,31.26608931]
[1732286888438,134.8,254.36,254.3,31.26608931]
[1732286888752,31.26608931,254.43,254.35,31.26608931]
[1732286889559,35.19578931,254.47,254.38,23.776884]
[1732286889860,35.19578931,254.47,254.4,23.776884]
[1732286889861,31.26608931,254.47,254.4,23.776884]
[1732286890164,31.26608931,254.45,254.37,31.26608931]
[1732286890337,31.26608931,254.45,254.33,6.0159]
[1732286890338,31.26608931,254.45,254.36,23.776884]
[1732286890539,31.26608931,254.41,254.32,23.776884]
[1732286890746,3.9298,254.47,254.37,31.26608931]
[1732286890747,31.26608931,254.44,254.37,31.26608931]
[1732286891055,31.26608931,254.44,254.36,23.776884]
[1732286891237,31.26608931,254.46,254.38,23.776884]
[1732286891441,31.26608931,254.48,254.39,31.26608931]
[1732286891658,31.26608931,254.48,254.4,23.776884]
[1732286892254,4.54114058,254.59,254.4,23.776884]
[1732286892255,31.26608931,254.62,254.48,23.776884]
[1732286892465,37.28798931,254.67,254.51,31.26608931]
[1732286892466,31.26608931,254.6,254.51,31.26608931]
[1732286892654,31.26608931,254.62,254.53,31.26608931]
[1732286893033,31.26608931,254.62,254.54,23.776884]
[1732286893258,31.26608931,254.64,254.56,23.776884]
[1732286893451,3.9269,254.65,254.57,31.26608931]
[1732286893659,31.26608931,254.64,254.56,23.776884]
[1732286894037,31.26608931,254.6,254.54,23.776884]
[1732286894240,31.26608931,254.6,254.52,23.776884]
[1732286894641,31.26608931,254.62,254.54,23.776884]
[1732286895046,31.26608931,254.64,254.54,23.776884]
[1732286895244,31.26608931,254.66,254.57,31.26608931]
[1732286895755,35.19288931,254.66,254.57,31.26608931]
[1732286896140,31.26608931,254.68,254.59,31.26608931]
[1732286897147,31.26608931,254.66,254.57,31.26608931]
[1732286897659,35.19358931,254.62,254.53,31.26608931]
[1732286897865,31.26608931,254.6,254.49,31.26608931]
[1732286898074,3.9275,254.62,254.49,31.26608931]
[1732286898075,31.26608931,254.58,254.49,31.26608931]
[1732286899153,31.26608931,254.58,254.5,23.776884]
[1732286899352,35.19418931,254.58,254.48,23.776884]
[1732286899649,31.26608931,254.52,254.43,31.26608931]
[1732286900044,31.26608931,254.54,254.43,31.26608931]
[1732286900367,31.26608931,254.54,254.45,31.26608931]
[1732286900753,35.19478931,254.54,254.45,31.26608931]
[1732286901469,138.7285,254.55,254.5,31.26608931]
[1732286901644,138.7285,254.55,254.44,31.26608931]
[1732286901645,31.26608931,254.53,254.44,31.26608931]
[1732286901966,3.9285,254.55,254.4,31.26608931]
[1732286901967,31.26608931,254.51,254.4,31.26608931]
[1732286902564,31.26608931,254.51,254.42,31.26608931]
[1732286903163,31.26608931,254.49,254.4,31.26608931]
[1732286903338,31.26608931,254.51,254.42,31.26608931]
[1732286903544,3.9288,254.53,254.44,31.26608931]
[1732286903756,134.8,254.54,254.46,31.26608931]
[1732286903945,134.8,254.54,254.5,31.26608931]
[1732286904165,3.9281,254.58,254.5,31.26608931]
[1732286904342,3.9281,254.58,254.41,31.26608931]
[1732286904343,31.26608931,254.57,254.48,31.26608931]
[1732286905058,3.9283,254.56,254.48,31.26608931]
[1732286905951,31.26608931,254.59,254.48,31.26608931]
[1732286906272,31.26608931,254.61,254.52,31.26608931]
[1732286906447,3.9274,254.62,254.54,31.26608931]
[1732286907348,31.26608931,254.61,254.52,31.26608931]
[1732286907559,3.9277,254.6,254.5,31.26608931]
[1732286907880,31.26608931,254.57,254.48,31.26608931]
[1732286908865,31.26608931,254.55,254.46,31.26608931]
[1732286909882,31.26608931,254.59,254.48,31.26608931]
[1732286910069,31.26608931,254.61,254.52,31.26608931]
[1732286910267,31.26608931,254.63,254.53,23.776884]
[1732286910476,31.26608931,254.69,254.61,31.26608931]
[1732286910789,31.26608931,254.65,254.55,31.26608931]
[1732286911083,31.26608931,254.63,254.55,31.26608931]
[1732286911254,31.26608931,254.63,254.53,55.04297331]
[1732286911584,31.26608931,254.61,254.51,31.26608931]
[1732286911783,134.8,254.67,254.6,31.26608931]
[1732286912676,31.26608931,254.65,254.57,23.776884]
[1732286912881,169.99278931,254.67,254.58,31.26608931]
[1732286913475,138.7267,254.67,254.58,31.26608931]
[1732286913659,169.99278931,254.67,254.58,31.26608931]
[1732286914163,134.8,254.67,254.61,23.776884]
[1732286914483,31.26608931,254.69,254.61,23.776884]
[1732286914685,23.1403094,254.7,254.61,42.9909934]
[1732286914976,3.9262,254.7,254.63,19.2141094]
[1732286915788,3.9256,254.74,254.67,19.2141094]
[1732286915971,19.2141094,254.78,254.69,19.2141094]
[1732286916174,3.9241,254.84,254.75,19.2141094]
[1732286916377,3.9241,254.84,254.77,19.2141094]
[1732286916587,23.1379094,254.86,254.77,19.2141094]
[1732286916960,3.9238,254.86,254.75,19.2141094]
[1732286917185,19.2141094,254.8,254.72,19.2141094]
[1732286917581,19.2141094,254.76,254.68,19.2141094]
[1732286917760,19.2141094,254.78,254.68,19.2141094]
[1732286917971,134.8,254.83,254.7,19.2141094]
[1732286917972,19.2141094,254.8,254.7,19.2141094]
[1732286918668,134.8,254.83,254.72,31.19588347]
[1732286918669,31.19588347,254.81,254.72,31.19588347]
[1732286918991,3.924,254.84,254.76,31.19588347]
[1732286919483,3.924,254.84,254.78,31.19588347]
[1732286919693,3.9237,254.86,254.79,23.776884]
[1732286920064,3.9237,254.86,254.78,31.19588347]
[1732286920285,3.9237,254.86,254.8,31.19588347]
[1732286920492,3.9231,254.9,254.8,31.19588347]
[1732286920666,31.19588347,254.89,254.78,31.19588347]
[1732286920988,31.19588347,254.89,254.8,31.19588347]
[1732286921209,31.19588347,254.89,254.78,31.19588347]
[1732286921569,31.19588347,254.89,254.8,31.19588347]
[1732286921774,3.9234,254.88,254.8,31.19588347]
[1732286921975,31.19588347,254.95,254.86,31.19588347]
[1732286922182,134.8,254.96,254.8,31.19588347]
[1732286922183,3.9221,254.96,254.88,31.19588347]
[1732286923088,3.9221,254.96,254.89,23.776884]
[1732286923475,3.9221,254.96,254.86,31.19588347]
[1732286923666,31.19588347,254.95,254.87,23.776884]
[1732286923866,31.19588347,254.97,254.87,23.776884]
[1732286924485,31.19588347,254.97,254.89,23.776884]
[1732286924689,3.9211,255.03,254.95,23.776884]
[1732286924891,3.9211,255.03,254.96,31.19588347]
[1732286925091,31.19588347,255.02,254.92,31.19588347]
[1732286925269,31.19588347,255.0,254.92,31.19588347]
[1732286925466,13.7238,255.03,254.81,23.776884]
[1732286925671,31.19588347,254.98,254.87,31.19588347]
[1732286925980,31.19588347,254.98,254.89,31.19588347]
[1732286926293,31.19588347,255.0,254.91,31.19588347]
[1732286926481,3.9217,254.99,254.89,31.19588347]
[1732286926880,31.19588347,254.94,254.85,31.19588347]
[1732286927781,31.19588347,254.96,254.87,31.19588347]
[1732286927975,31.19588347,254.96,254.85,31.19588347]
[1732286928299,31.19588347,254.96,254.86,23.776884]
[1732286928599,3.9223,254.95,254.88,31.19588347]
[1732286928891,3.9223,254.95,254.9,31.19588347]
[1732286929474,3.922,254.97,254.91,23.776884]
[1732286929686,31.19588347,255.0,254.91,23.776884]
[1732286929893,3.9217,254.99,254.93,23.776884]
[1732286930488,31.19588347,255.02,254.93,23.776884]
[1732286930691,31.19588347,255.0,254.9,31.19588347]
[1732286930871,31.19588347,254.98,254.91,23.776884]
[1732286931074,31.19588347,255.0,254.92,31.19588347]
[1732286931697,3.9217,254.99,254.92,31.19588347]
[1732286932097,3.9217,254.99,254.91,23.776884]
[1732286933197,3.9217,254.99,254.9,31.19588347]
[1732286933389,31.19588347,254.92,254.83,31.19588347]
[1732286933883,31.19588347,254.9,254.79,31.19588347]
[1732286934090,31.19588347,254.88,254.79,31.19588347]
[1732286934278,31.19588347,254.9,254.79,31.19588347]
[1732286935005,35.11798347,254.96,254.85,31.19588347]
[1732286935377,35.11798347,254.96,254.87,31.19588347]
[1732286936777,3.9226,254.93,254.86,23.776884]
[1732286936976,31.19588347,254.89,254.79,31.19588347]
[1732286937175,13.7292,254.93,254.84,31.19588347]
[1732286937176,35.11848347,254.93,254.84,31.19588347]
[1732286937398,3.9226,254.93,254.86,31.19588347]
[1732286938496,3.9226,254.93,254.84,31.19588347]
[1732286938682,19.17907622,254.94,254.84,19.17907622]
[1732286939085,19.17907622,254.94,254.8,20.0]
[1732286939086,19.17907622,254.92,254.82,19.17907622]
[1732286940108,19.17907622,254.9,254.8,19.17907622]
[1732286940477,3.9229,254.91,254.82,19.17907622]
[1732286940679,19.17907622,254.9,254.78,19.17907622]
[1732286940898,19.17907622,254.86,254.76,19.17907622]
[1732286941199,19.17907622,254.86,254.7,16.2775]
[1732286941200,19.17907622,254.84,254.74,19.17907622]
[1732286941400,55.99588347,254.85,254.76,19.17907622]
[1732286941983,55.99588347,254.85,254.72,19.17907622]
[1732286941984,3.9244,254.81,254.72,19.17907622]
[1732286942183,55.99588347,254.85,254.67,19.17907622]
[1732286942184,3.9243,254.83,254.76,19.17907622]
[1732286942399,55.99588347,254.85,254.8,19.17907622]
[1732286942603,19.17907622,254.94,254.84,19.17907622]
[1732286942824,19.17907622,254.94,254.74,2.5]
[1732286942825,59.91848347,254.93,254.86,19.17907622]
[1732286943107,59.91848347,254.93,254.8,19.17907622]
[1732286943108,19.17907622,254.88,254.8,19.17907622]
[1732286943280,19.17907622,254.9,254.82,19.17907622]
[1732286943597,3.9226,254.93,254.86,19.17907622]
[1732286943805,3.9217,254.99,254.92,19.17907622]
[1732286944100,20.0843,255.05,254.96,19.17907622]
[1732286944495,20.0843,255.05,254.85,5.0]
[1732286944496,3.9208,255.05,254.98,19.17907622]
[1732286944805,3.9202,255.09,255.02,19.17907622]
[1732286945097,23.44,255.17,254.93,19.17907622]
[1732286945098,19.17907622,255.16,255.06,19.17907622]
[1732286945308,19.17907622,255.14,255.04,19.17907622]
[1732286945509,19.17907622,255.14,254.94,20.0]
[1732286945510,19.17907622,255.12,255.03,23.776884]
[1732286945721,19.17907622,255.08,254.98,19.17907622]
[1732286946008,3.9207,255.05,254.96,19.17907622]
[1732286946381,19.17907622,255.04,254.96,19.17907622]
[1732286946700,19.17907622,255.02,254.92,19.17907622]
[1732286947184,3.9214,255.01,254.92,19.17907622]
[1732286947384,19.17907622,254.98,254.88,19.17907622]
[1732286947585,3.9214,255.01,254.86,19.17907622]
[1732286947586,19.17907622,254.94,254.86,19.17907622]
[1732286948099,19.17907622,254.94,254.84,19.17907622]
[1732286948308,19.17907622,254.92,254.82,19.17907622]
[1732286948499,16.2249,255.01,254.75,6.2938]
[1732286948500,19.17907622,254.9,254.8,19.17907622]
[1732286948800,55.99588347,254.91,254.8,19.17907622]
[1732286948801,55.99588347,254.91,254.86,31.16732685]
[1732286949001,31.16732685,254.97,254.88,31.16732685]
[1732286949205,3.922,254.98,254.9,31.16732685]
[1732286949576,31.16732685,254.97,254.88,31.16732685]
[1732286949875,31.16732685,254.93,254.84,31.16732685]
[1732286950502,31.16732685,254.95,254.86,31.16732685]
[1732286950703,31.16732685,254.93,254.84,31.16732685]
[1732286951376,3.9227,254.92,254.84,31.16732685]
[1732286951586,3.9227,254.92,254.86,31.16732685]
[1732286951786,3.9227,254.92,254.82,31.16732685]
[1732286952183,31.16732685,254.87,254.78,31.16732685]
[1732286952398,31.16732685,254.87,254.75,6.2938]
[1732286952399,31.16732685,254.87,254.76,31.16732685]
[1732286952607,31.16732685,254.89,254.8,31.16732685]
[1732286953103,3.9227,254.92,254.67,31.16732685]
[1732286953104,31.16732685,254.85,254.74,31.16732685]
[1732286953296,31.16732685,254.79,254.7,31.16732685]
[1732286953501,2.5,254.88,254.66,31.16732685]
[1732286953502,31.16732685,254.75,254.66,31.16732685]
[1732286954197,31.16732685,254.77,254.68,31.16732685]
[1732286954393,55.99588347,254.82,254.7,31.16732685]
[1732286954394,31.16732685,254.79,254.7,31.16732685]
[1732286954601,31.16732685,254.81,254.72,31.16732685]
[1732286954800,31.16732685,254.81,254.7,31.16732685]
[1732286955405,31.16732685,254.81,254.72,31.16732685]
[1732286955781,31.16732685,254.79,254.7,31.16732685]
[1732286956008,31.16732685,254.75,254.66,31.16732685]
[1732286956302,31.16732685,254.81,254.72,31.16732685]
[1732286956507,55.99588347,254.82,254.74,31.16732685]
[1732286956799,31.16732685,254.87,254.78,31.16732685]
[1732286957177,31.16732685,254.85,254.76,31.16732685]
[1732286957376,31.16732685,254.87,254.78,31.16732685]
[1732286957585,31.16732685,254.85,254.76,31.16732685]
[1732286957906,31.16732685,254.85,254.74,31.16732685]
[1732286958104,31.16732685,254.83,254.74,31.16732685]
[1732286958425,35.09152685,254.83,254.74,31.16732685]
[1732286959403,3.9242,254.83,254.74,31.16732685]
[1732286959616,31.16732685,254.85,254.76,31.16732685]
[1732286959786,31.16732685,254.87,254.78,31.16732685]
[1732286959981,35.09092685,254.87,254.78,31.16732685]
[1732286960179,31.16732685,254.85,254.74,31.16732685]
[1732286960591,31.16732685,254.83,254.74,31.16732685]
[1732286961001,35.09152685,254.83,254.74,31.16732685]
[1732286961389,35.09152685,254.83,254.76,31.16732685]
[1732286961390,3.9242,254.83,254.76,31.16732685]
[1732286962096,31.16732685,254.83,254.74,31.16732685]
[1732286962314,31.16732685,254.85,254.76,31.16732685]
[1732286962485,31.16732685,254.87,254.78,31.16732685]
[1732286962885,31.16732685,254.89,254.8,31.16732685]
[1732286963191,35.09062685,254.89,254.8,31.16732685]
[1732286963396,35.09032685,254.91,254.82,31.16732685]
[1732286963603,31.16732685,254.85,254.76,31.16732685]
[1732286963993,31.16732685,254.89,254.8,31.16732685]
[1732286964200,3.923,254.91,254.84,31.16732685]
[1732286964391,3.923,254.91,254.75,20.0]
[1732286964598,31.16732685,254.88,254.78,31.16732685]
[1732286964813,31.16732685,254.88,254.76,23.776884]
[1732286964814,31.16732685,254.86,254.76,54.94421085]
[1732286965111,3.9238,254.85,254.76,54.94421085]
[1732286965937,3.9238,254.85,254.65,2.5]
[1732286965938,31.16732685,254.82,254.72,31.16732685]
[1732286966100,55.99588347,254.84,254.12,12.2358052]
[1732286966101,2.5,254.15,254.12,12.2358052]
[1732286966304,31.16732685,254.13,253.96,0.03858775]
[1732286966507,96.42127746,254.12,254.01,12.07621374]
[1732286966706,96.42127746,254.12,253.91,60.53108088]
[1732286966707,16.0702129,254.11,253.91,60.53108088]
[1732286966886,53.6538769,254.1,253.92,32.60605493]
[1732286967087,27.55649166,254.09,253.93,0.59015759]
[1732286967307,1.39069167,254.12,253.95,0.09367462]
[1732286967495,48.43187502,253.97,253.96,9.49072419]
[1732286967701,1.39069167,254.12,253.96,5.57472419]
[1732286967903,0.5097,254.34,253.96,5.57472419]
[1732286967904,19.49054516,254.33,253.99,3.916]
[1732286968117,0.5097,254.34,253.99,3.916]
[1732286968118,19.3759124,254.09,254.02,31.16732685]
[1732286968318,73.00738739,254.15,254.02,31.16732685]
[1732286969009,63.19402707,254.15,254.02,31.16732685]
[1732286970003,63.19402707,254.15,254.14,31.16732685]
[1732286970411,63.19402707,254.15,254.14,74.94421085]
[1732286971505,63.19402707,254.15,254.14,106.1115377]
[1732286971818,0.5097,254.34,254.18,20.0]
[1732286972008,0.5097,254.34,254.28,31.16732685]
[1732286972395,0.5097,254.34,254.29,20.0]
[1732286973221,0.5097,254.34,254.19,23.776884]
[1732286973222,0.5097,254.34,254.27,20.0]
[1732286974413,0.5097,254.34,254.27,80.43794746]
[1732286974614,31.16732685,254.33,254.27,80.43794746]
[1732286975000,24.61315176,254.35,254.27,80.43794746]
[1732286975702,24.61315176,254.35,254.27,20.0]
[1732286975895,24.61315176,254.35,254.13,4.04396902]
[1732286975896,33.66732685,254.39,254.29,20.0]
[1732286976099,33.66732685,254.39,254.28,31.16732685]
[1732286976100,31.16732685,254.37,254.31,20.0]
[1732286976421,31.16732685,254.35,254.31,20.0]
[1732286976602,31.16732685,254.35,254.27,20.0]
[1732286976919,31.16732685,254.37,254.29,20.0]
[1732286977115,31.16732685,254.35,254.29,20.0]
[1732286977621,31.16732685,254.37,254.29,20.0]
[1732286977924,31.16732685,254.41,254.32,31.16732685]
[1732286978110,31.16732685,254.41,254.33,20.0]
[1732286978624,31.16732685,254.39,254.32,20.0]
[1732286978931,31.16732685,254.37,254.29,20.0]
[1732286979103,31.16732685,254.35,254.27,20.0]
[1732286979420,2.5,254.4,254.29,20.0]
[1732286979421,31.16732685,254.36,254.29,20.0]
[1732286981119,31.16732685,254.38,254.31,20.0]
[1732286981528,31.16732685,254.4,254.33,20.0]
[1732286981704,33.66732685,254.42,254.33,51.16732685]
[1732286981905,33.66732685,254.42,254.34,23.776884]
[1732286982223,36.24632685,254.44,254.37,20.0]
[1732286982595,31.16732685,254.42,254.37,20.0]
[1732286982916,36.24632685,254.44,254.36,20.0]
[1732286983135,5.079,254.44,254.39,31.16732685]
[1732286983507,5.079,254.44,254.38,20.0]
[1732286983508,36.24632685,254.44,254.38,20.0]
[1732286983908,31.16732685,254.42,254.34,20.0]
[1732286985008,2.5,254.43,254.36,20.0]
[1732286985609,31.16732685,254.42,254.36,20.0]
[1732286985807,33.66732685,254.4,254.31,31.16732685]
[1732286986029,31.16732685,254.39,254.32,20.0]
[1732286986205,33.66732685,254.39,254.32,20.0]
[1732286986401,33.66732685,254.39,254.31,20.0]
[1732286986722,31.16732685,254.37,254.28,31.16732685]
[1732286986928,33.66732685,254.39,254.3,31.16732685]
[1732286987930,36.16732685,254.39,254.31,20.0]
[1732286988130,33.66732685,254.39,254.31,20.0]
[1732286988508,36.16732685,254.39,254.31,20.0]
[1732286988830,2.5,254.41,254.34,31.16732685]
[1732286989033,7.579,254.44,254.36,31.16732685]
[1732286989333,5.079,254.44,254.36,31.16732685]
[1732286989825,5.079,254.44,254.37,20.0]
[1732286990025,2.5,254.43,254.37,20.0]
[1732286990231,7.579,254.44,254.37,20.0]
[1732286990612,10.079,254.44,254.37,20.0]
[1732286990942,2.5,254.42,254.37,20.0]
[1732286991108,2.5,254.4,254.37,20.0]
[1732286991303,2.5,254.4,254.35,20.0]
[1732286992012,33.66732685,254.43,254.35,20.0]
[1732286992209,7.579,254.44,254.36,31.16732685]
[1732286992408,5.079,254.44,254.38,31.16732685]
[1732286992624,5.079,254.44,254.28,31.16732685]
[1732286992625,5.079,254.44,254.4,31.16732685]
[1732286992922,5.079,254.44,254.41,20.0]
[1732286993629,5.0,254.38,254.32,31.16732685]
[1732286994113,2.5,254.36,254.3,31.16732685]
[1732286994917,36.16732685,254.38,254.31,20.0]
[1732286995133,2.5,254.38,254.31,20.0]
[1732286995331,2.5,254.4,254.33,20.0]
[1732286995629,5.0,254.38,254.33,20.0]
[1732286995816,5.0,254.38,254.31,20.0]
[1732286997011,2.5,254.38,254.31,20.0]
[1732286997341,2.5,254.36,254.31,20.0]
[1732286997505,2.5,254.36,254.29,20.0]
[1732286998713,2.5,254.33,254.27,20.0]
[1732286999821,2.5,254.33,254.29,20.0]
[1732287000036,5.0,254.35,254.29,20.0]
[1732287000332,36.16732685,254.37,254.29,20.0]
[1732287000638,2.5,254.35,254.3,31.16732685]
[1732287000843,2.5,254.33,254.27,20.0]
[1732287001510,2.5,254.31,254.24,19.25992604]
[1732287001715,21.75992604,254.33,254.26,19.25992604]
[1732287001716,5.0,254.33,254.26,19.25992604]
[1732287001925,2.5,254.29,254.26,19.25992604]
[1732287002134,2.5,254.29,254.22,19.25992604]
[1732287002324,2.5,254.29,254.15,23.37385212]
[1732287002325,2.5,254.23,254.18,19.25992604]
[1732287002519,2.5,254.21,254.16,19.25992604]
[1732287003036,2.5,254.18,254.14,19.25992604]
[1732287003419,2.5,254.2,254.14,19.25992604]
[1732287003614,2.5,254.16,254.14,19.25992604]
[1732287003820,19.25992604,254.22,254.14,19.25992604]
[1732287003821,2.5,254.18,254.14,19.25992604]
[1732287005017,2.5,254.16,254.02,4.98395665]
[1732287005220,21.75992604,254.13,254.04,19.25992604]
[1732287005426,24.25992604,254.13,254.04,19.25992604]
[1732287005625,21.75992604,254.13,254.04,19.25992604]
[1732287005943,24.25992604,254.13,254.04,19.25992604]
[1732287006316,24.25992604,254.13,253.89,19.25992604]
[1732287006317,21.75992604,254.11,254.02,19.25992604]
[1732287006514,2.5,254.08,254.02,19.25992604]
[1732287006732,6.6466,254.2,253.96,19.25992604]
[1732287006733,2.5,254.03,253.96,19.25992604]
[1732287007122,21.75992604,254.05,253.96,19.25992604]
[1732287007325,2.5,254.04,253.96,19.25992604]
[1732287007723,19.25992604,254.05,253.96,19.25992604]
[1732287007724,0.59015759,254.03,253.96,19.25992604]
[1732287007932,2.5,254.06,253.98,19.25992604]
[1732287008122,2.5,254.04,253.96,19.25992604]
[1732287008322,2.5,254.02,253.96,19.25992604]
[1732287008730,2.5,254.02,253.96,31.37613141]
[1732287009224,2.5,254.0,253.94,31.37613141]
[1732287009840,5.0,254.03,253.96,31.37613141]
[1732287010150,2.5,254.0,253.96,31.37613141]
[1732287010448,2.5,254.05,253.98,31.37613141]
[1732287010738,2.5,254.05,254.0,31.37613141]
[1732287010924,2.5,254.05,254.02,31.37613141]
[1732287011453,2.5,254.05,254.01,20.0]
[1732287011622,2.5,254.03,254.01,20.0]
[1732287011823,2.5,254.03,253.99,20.0]
[1732287012029,2.5,253.98,253.94,31.37613141]
[1732287012223,2.5,253.98,253.92,31.37613141]
[1732287012439,2.5,253.91,253.88,31.37613141]
[1732287012637,2.5,253.91,253.86,31.37613141]
[1732287012838,2.5,253.91,253.86,17.72675564]
[1732287013052,2.5,253.87,253.84,31.37613141]
[1732287013548,2.5,253.83,253.78,31.37613141]
[1732287014041,2.5,253.85,253.8,31.37613141]
[1732287014042,2.5,253.81,253.8,31.37613141]
[1732287014244,2.5,253.79,253.76,31.37613141]
[1732287014435,2.5,253.75,253.74,31.37613141]
[1732287014749,2.5,253.79,253.74,31.37613141]
[1732287014951,2.5,253.83,253.78,31.37613141]
[1732287015245,2.5,253.76,253.63,4.99723978]
[1732287015552,2.5,253.61,253.3,6.177]
[1732287015841,2.5,253.68,253.3,6.177]
[1732287016044,2.5,253.63,253.31,0.59130438]
[1732287016219,2.5,253.65,253.31,0.59130438]
[1732287016425,2.5,253.63,253.31,0.59130438]
[1732287016742,2.5,253.63,253.57,31.37613141]
[1732287016949,2.5,253.63,253.59,31.37613141]
[1732287017329,2.5,253.61,253.55,31.37613141]
[1732287017521,2.5,253.61,253.37,31.37613141]
[1732287017522,2.5,253.61,253.57,31.37613141]
[1732287017937,2.5,253.61,253.55,31.37613141]
[1732287018247,2.5,253.53,253.47,31.37613141]
[1732287018430,2.5,253.53,253.37,31.37613141]
[1732287018431,2.5,253.53,253.45,31.37613141]
[1732287018631,2.5,253.54,253.45,31.37613141]
[1732287018632,2.5,253.51,253.45,31.37613141]
[1732287018827,0.59015759,253.62,253.32,5.10183557]
[1732287018828,2.5,253.47,253.32,5.10183557]
[1732287019135,2.5,253.62,253.32,5.10183557]
[1732287019136,2.5,253.51,253.46,31.37613141]
[1732287019855,2.5,253.49,253.44,31.37613141]
[1732287020142,2.5,253.49,253.46,31.37613141]
[1732287020345,2.10591133,253.49,253.46,31.37613141]
[1732287020544,2.10591133,253.51,253.47,20.0]
[1732287020747,2.10591133,253.54,253.47,20.0]
[1732287020946,33.48204274,253.58,253.49,20.0]
[1732287021138,2.10591133,253.54,253.51,20.0]
[1732287021524,2.10591133,253.53,253.51,20.0]
[1732287021830,2.10591133,253.53,253.47,20.0]
[1732287022023,2.10591133,253.53,253.46,31.37613141]
[1732287022024,2.10591133,253.49,253.46,31.37613141]
[1732287022226,2.10591133,253.4,253.36,31.37613141]
[1732287022431,2.10591133,253.46,253.38,31.37613141]
[1732287022628,2.10591133,253.48,253.38,31.37613141]
[1732287022829,4.60591133,253.5,253.38,31.37613141]
[1732287023040,2.5,253.5,253.38,31.37613141]
[1732287023244,2.10591133,253.49,253.3,0.39408867]
[1732287023457,2.10591133,253.51,253.32,0.39408867]
[1732287023634,2.10591133,253.51,253.49,20.0]
[1732287024228,2.10591133,253.51,253.46,31.37613141]
[1732287024433,2.10591133,253.51,253.48,31.37613141]
[1732287024648,2.10591133,253.51,253.49,20.0]
[1732287025634,2.10591133,253.45,253.4,31.37613141]
[1732287025825,2.10591133,253.49,253.44,31.37613141]
[1732287026031,2.10591133,253.45,253.44,31.37613141]
[1732287026229,2.10591133,253.47,253.44,31.37613141]
[1732287026430,2.10591133,253.43,253.36,5.15397026]
[1732287026724,2.10591133,253.49,253.41,31.37613141]
[1732287026929,2.10591133,253.49,253.37,31.37613141]
[1732287026930,2.10591133,253.49,253.47,31.37613141]
[1732287027152,2.10591133,253.47,253.46,20.0]
[1732287027649,2.10591133,253.49,253.46,20.0]
[1732287028050,2.10591133,253.39,253.14,0.39408867]
[1732287028237,2.10591133,253.34,253.3,31.37613141]
[1732287028439,2.10591133,253.37,253.32,31.37613141]
[1732287028749,2.10591133,253.37,253.34,31.37613141]
[1732287029246,2.10591133,253.39,253.36,31.37613141]
[1732287029449,2.10591133,253.39,253.24,31.37613141]